Cogmind - Beta 16 @@@ ROGUE MODE // 2026.02.03 @ 08:27:35 Player: Ly0ko Result: Self-destructed Performance ------------- Evolutions (2) 1000 Regions Visited (4) 800 Robots Destroyed (39) 195 Value Destroyed (1057) 1057 Prototype IDs (0) 0 Alien Tech Used (0) 0 Bonus (0) 0 TOTAL SCORE: 3052 Bonus ------- None Cogmind --------- Core Integrity 463/550 Matter 7/300 Energy 250/250 System Corruption 0% Temperature Cool (0) Movement Walking (190) Ox1 Location -8/Materials Parts ------- > --- POWER (1) -------- Ion Engine > --- PROPULSION (4) --- Aluminum Leg > --- UTILITY (3) ------ Medium Storage Unit > --- WEAPON (3) ------- Light Assault Rifle Grenade Launcher > --- INVENTORY (10) --- Light Ion Engine Improved Ion Engine Improved Ion Engine Reinforced Ion Engine Light Treads Light Treads Medium Storage Unit Particle Gun Peak State ------------ > --- POWER ------------ Improved Ion Engine > --- PROPULSION ------- Aluminum Leg Aluminum Leg Aluminum Leg Aluminum Leg > --- UTILITY ---------- Small Storage Unit Medium Storage Unit Seismic Detector > --- WEAPON ----------- Particle Gun Light Assault Rifle Grenade Launcher > --- INVENTORY -------- Ion Engine Improved Ion Engine Improved Ion Engine Reinforced Ion Engine Light Treads Light Treads Assault Rifle Grenade Launcher [Rating: 14] Favorites ----------- Power Improved Ion Engine Engine Improved Ion Engine Propulsion Aluminum Leg Leg Aluminum Leg Utility Small Storage Unit Device Seismic Detector Storage Small Storage Unit Weapon Assault Rifle Energy Gun EM Pulse Gun Ballistic Gun Assault Rifle Ballistic Cannon Light Cannon Launcher Grenade Launcher Build | -11 -10 -10 -9 -8 ------- Run | Yrd Mat Min Mat Mat Slots Evolved 4 | . . . 2 2 Power . | . . . . . Propulsion 2 | . . . 2 . Utility 1 | . . . . 1 Weapon 1 | . . . . 1 Parts Attached 22 | 6 1 . 7 8 Power 4 | 1 . . 2 1 Engine 4 | 1 . . 2 1 Core . | . . . . . Reactor . | . . . . . Propulsion 6 | 2 . . 2 2 Treads . | . . . . . Leg 6 | 2 . . 2 2 Wheel . | . . . . . Hover . | . . . . . Flight . | . . . . . Utility 3 | 1 . . 1 1 Device 1 | . . . 1 . Storage 2 | 1 . . . 1 Processor . | . . . . . Hackware . | . . . . . Protection . | . . . . . Artifact . | . . . . . Weapon 9 | 2 1 . 2 4 Energy Gun 2 | 1 . . . 1 Energy Cannon . | . . . . . Ballistic Gun 2 | 1 . . . 1 Ballistic Cannon 2 | . . . 2 . Launcher 3 | . 1 . . 2 Special Weapon . | . . . . . Impact Weapon . | . . . . . Slashing Weapon . | . . . . . Piercing Weapon . | . . . . . Special Melee Weapon . | . . . . . Unidentified Prototypes . | . . . . . Parts Lost 12 | . 1 . 4 7 Power 2 | . . . 1 1 Propulsion 5 | . . . 2 3 Utility 1 | . . . . 1 Weapon 4 | . 1 . 1 2 Highest Loss Streak 4 | . 1 . 2 4 To Critical Strikes . | . . . . . Average Backups 5 | 3 4 4 5 7 Power 2 | . 1 1 1 3 Propulsion 1 | 1 2 2 2 2 Utility . | . . . . . Weapon 1 | . 1 1 2 1 Tool/Special . | . . . . . Unused Backups 6 | . . . . 6 Power 3 | . . . . 3 Propulsion 2 | . . . . 2 Utility 1 | . . . . 1 Weapon . | . . . . . Tool/Special . | . . . . . Average Slot Usage (%) 74 | . 85 85 65 75 Engine 10 | . 14 14 9 8 Leg 24 | . 28 28 21 25 Device 3 | . . . . 6 Storage 10 | . 14 14 11 9 Energy Gun 4 | . 9 14 2 4 Ballistic Gun 10 | . 14 14 6 11 Ballistic Cannon 5 | . . . 13 3 Launcher 3 | . 4 . . 6 Peak Build Rating 14 | 6 6 6 9 14 Average Rating 7 | 4 5 6 6 10 On Entrance 5 | . 6 6 6 9 Avg Prop Armor Cover (%) . | . . . . . Naked Turns . | . . . . . Heaviest Build 25 | 14 15 14 18 25 Greatest Support 40 | 20 20 20 30 40 Greatest Overweight (x) 1 | . . . 1 1 Average Overweight (x) . | . . . . . Largest Inventory Capacity 10 | 8 8 8 8 10 Average Capacity 8 | 5 8 8 8 8 Most Carried 9 | 5 5 4 8 9 Average Carried 6 | 3 4 4 5 7 Final Capacity 10 | 8 8 8 8 10 Final Carried 8 | 4 4 4 8 8 Class Distribution -------------------- 61% | Mutant 19% | Gunner 14% | Scavenger-Gunner 4% | Scavenger-Mutant Dominant Class ---------------- Mutant | -10/Materials Mutant | -10/Mines Mutant | -9/Materials Gunner | -8/Materials Resources | -11 -10 -10 -9 -8 ----------- Run | Yrd Mat Min Mat Mat Matter Collected 724 | 181 113 . 266 164 Remotely . | . . . . . Salvage Created 939 | . 100 . 329 510 Parts 69 | . 8 . 21 40 Haulers Intercepted . | . . . . . Recyclers Shooed 2 | . . . . 2 Parts Field Recycled . | . . . . . Retrieved Matter . | . . . . . Parts Self-Destructed . | . . . . . Prevented . | . . . . . Parts Restored . | . . . . . Kills | -11 -10 -10 -9 -8 ------- Run | Yrd Mat Min Mat Mat Combat Hostiles Destroyed 30 | . 4 . 12 14 Guns 11 | . 3 . 1 7 Cannons 12 | . . . 11 1 AOE 7 | . 1 . . 6 Classes Destroyed 8 | . 2 . 1 5 Worker 2 | . . . . 2 Builder 5 | . . . . 5 Watcher 2 | . . . . 2 Swarmer 10 | . 2 . 5 3 Grunt 17 | . 2 . 6 9 Brawler 1 | . . . . 1 Sentry 1 | . . . 1 . Hunter 1 | . . . . 1 Best Kill Streak 7 | . 2 . 5 7 Combat Bots Only 5 | . 2 . 5 3 Max Kills in Single Turn 4 | . 1 . 1 4 Gunslinging . | . . . . . Exploded 2 | . 1 . . 2 Melee . | . . . . . Uniques/NPCs Destroyed . | . . . . . Combat | -11 -10 -10 -9 -8 -------- Run | Yrd Mat Min Mat Mat Hostile Shots Fired 204 | . 46 . 88 70 Missed 70 | . 19 . 29 22 Hits 134 | . 27 . 59 48 Projectile 134 | . 27 . 59 48 Critical Strikes 1 | . . . . 1 Damage Taken 1722 | . 291 . 572 859 Core 204 | . 53 . 64 87 Absorbed by Shields . | . . . . . Core Remaining (%) 87 | 100 . 78 84 . Volleys Fired 89 | . 13 . 28 48 Largest 3 | . 2 . 2 3 Hottest 115 | . 60 . 60 115 Shots Fired 175 | . 23 . 53 99 Gun 100 | . 22 . 12 66 Cannon 47 | . . . 41 6 Launcher 28 | . 1 . . 27 Special . | . . . . . Kinetic 112 | . 13 . 53 46 Thermal 26 | . . . . 26 Explosive 28 | . 1 . . 27 Electromagnetic 9 | . 9 . . . Robot Hit Streak 9 | . 8 . 8 9 Robot Miss Streak 5 | . 4 . 5 4 Penetration Max . | . . . . . Secondary Targets 2 | . . . . 2 Max Gunslinging Chain 1 | . . . . 1 Shots Hit Robots 110 | . 16 . 31 63 Core Hits 80 | . 7 . 15 58 Critical Kills . | . . . . . Critical Parts Destroyed . | . . . . . Critical Strikes 3 | . . . 2 1 Blast 3 | . . . 2 1 Melee Attacks . | . . . . . Impact . | . . . . . Slashing . | . . . . . Piercing . | . . . . . Sneak Attacks . | . . . . . Combat Hostiles . | . . . . . Follow-up Attacks . | . . . . . Damage Inflicted 2944 | . 269 . 495 2180 Guns 800 | . 212 . 94 494 Cannons 468 | . . . 399 69 Explosions 1672 | . 57 . . 1615 Melee . | . . . . . Ramming 4 | . . . 2 2 Kinetic 930 | . 120 . 493 317 Thermal 246 | . . . . 246 Explosive 1672 | . 57 . . 1615 Electromagnetic 92 | . 92 . . . Impact . | . . . . . Slashing . | . . . . . Piercing . | . . . . . Highest Corruption . | . . . . . Average Corruption . | . . . . . Corruption Purged . | . . . . . Corruption Blocked . | . . . . . Overload Shots . | . . . . . Overflow Damage 45 | . . . 14 31 Projectiles 14 | . . . 14 . Explosions 31 | . . . . 31 Melee . | . . . . . Knockbacks 11 | . . . 10 1 Impact . | . . . . . Kinetic 8 | . . . 7 1 Secondary 3 | . . . 3 . Self-Inflicted Damage 124 | . 17 . . 107 Shots 6 | . 1 . . 5 Rammed . | . . . . . Targets Rammed 6 | . . . 1 5 Kicked 6 | . . . 1 5 Crushed . | . . . . . Highest Temperature 459 | . 45 . 4 459 Average Temperature 136 | . 19 . 3 166 Received Heat Transfer 588 | . 78 . 159 351 Effects 3 | . . . . 3 Energy Bleed 1 | . . . . 1 Interference 1 | . . . . 1 Matter Decay 1 | . . . . 1 Siege Activations . | . . . . . Martial Activations . | . . . . . Shielding Activations . | . . . . . Robots Disrupted . | . . . . . Combat Hostiles . | . . . . . Robots Corrupted . | . . . . . Combat Hostiles . | . . . . . Parts Fried . | . . . . . Impact Corruptions . | . . . . . Robots Melted . | . . . . . Combat Hostiles . | . . . . . Parts Melted . | . . . . . Heat Transferred 592 | . . . . 592 Parts Sabotaged . | . . . . . Parts Stolen . | . . . . . Parts Stripped . | . . . . . Power Chain Reactions . | . . . . . Alert | -11 -10 -10 -9 -8 ------- Run | Yrd Mat Min Mat Mat Maximum Alert Level 1 | . . . . 1 Low Security (%) 97 | 100 100 100 100 94 Level 1 2 | . . . . 5 Level 2 . | . . . . . Level 3 . | . . . . . Level 4 . | . . . . . Level 5 . | . . . . . High Security . | . . . . . Max Security . | . . . . . Peak Influence 217 | . 50 . 189 217 Initial 62 | . . . . 62 Average 58 | . 13 . 99 64 Influence Increases 969 | . 95 . 359 515 Destroy 0b10 Robot/C 600 | . 80 . 240 280 Destroy 0b10 Robot/NC 45 | . . . . 45 Destroy Leader 104 | . 10 . 40 54 Disable Machine 30 | . . . . 30 Destroy Structure 85 | . 5 . 4 76 Lose Combat Pursuer 105 | . . . 75 30 Influence Decreases 752 | . 95 . 210 447 Entered New Map 87 | . . . . 87 Time Decay 555 | . 95 . 170 290 Lost Part 110 | . . . 40 70 Squads Dispatched 4 | . . . 1 3 Investigation . | . . . . . Extermination . | . . . . . Reinforcement 4 | . . . 1 3 Assault . | . . . . . Garrison . | . . . . . Intercept . | . . . . . Searches Triggered . | . . . . . Construction Impeded 3 | . . . . 3 Haulers Reinforced . | . . . . . Active Scanning Responses . | . . . . . Cargo Convoy Interrupts . | . . . . . Stealth | -11 -10 -10 -9 -8 --------- Run | Yrd Mat Min Mat Mat Distress Signals 9 | . 2 . 2 5 Communications Jammed . | . . . . . Distress Signals . | . . . . . Times Spotted 54 | . 9 . 21 24 Peak Tracking Total 7 | . 6 . 7 7 Tactical Retreats 3 | . . . 2 1 Traps | -11 -10 -10 -9 -8 ------- Run | Yrd Mat Min Mat Mat Traps Triggered . | . . . . . Indirectly . | . . . . . Trap Hack Attempts . | . . . . . Triggered . | . . . . . Disarmed . | . . . . . Reprogrammed . | . . . . . Reused . | . . . . . Traps Extracted . | . . . . . Installed . | . . . . . Triggered . | . . . . . Machines | -11 -10 -10 -9 -8 ---------- Run | Yrd Mat Min Mat Mat Machines Disabled 2 | . . . . 2 Max in Single Turn 1 | . . . . 1 Machines Repaired . | . . . . . Machines Dismantled . | . . . . . Machines Sabotaged . | . . . . . Overloaded Fab Kills . | . . . . . Hacking | -11 -10 -10 -9 -8 --------- Run | Yrd Mat Min Mat Mat Machines Accessed 1 | . . . . 1 Terminals . | . . . . . Fabricators . | . . . . . Repair Stations . | . . . . . Recycling Units 1 | . . . . 1 Scanalyzers . | . . . . . Garrison Access . | . . . . . Total Hacks 1 | . . . . 1 Successful 1 | . . . . 1 Failed . | . . . . . Catastrophic . | . . . . . Database Lockouts . | . . . . . Manual . | . . . . . Terminals . | . . . . . Fabricators . | . . . . . Repair Stations . | . . . . . Recycling Units 1 | . . . . 1 Scanalyzers . | . . . . . Garrison Access . | . . . . . Terminal Hacks . | . . . . . Fabricator Hacks . | . . . . . Repair Station Hacks . | . . . . . Recycling Unit Hacks 1 | . . . . 1 Report Inventory 1 | . . . . 1 Scanalyzer . | . . . . . Garrison Access Hacks . | . . . . . Unauthorized Hacks . | . . . . . Terminals . | . . . . . Fabricators . | . . . . . Repair Stations . | . . . . . Recycling Units . | . . . . . Scanalyzers . | . . . . . Garrison Access . | . . . . . Data Cores Recovered . | . . . . . Used . | . . . . . Hacking Detections 1 | . . . . 1 Full Trace Events . | . . . . . Feedback Events . | . . . . . Feedback Blocked . | . . . . . Robot Schematics Acquired . | . . . . . Robots Built . | . . . . . Authchips . | . . . . . Time . | . . . . . Total Robot Build Rating . | . . . . . Part Schematics Acquired . | . . . . . Parts Built . | . . . . . Authchips . | . . . . . Time . | . . . . . Total Part Build Rating . | . . . . . Part Studies Acquired . | . . . . . Parts Repaired . | . . . . . Time . | . . . . . Parts Recycled . | . . . . . Recycled Matter . | . . . . . Retrieved Matter . | . . . . . Retrieved Components . | . . . . . Parts Scanalyzed . | . . . . . Part Schematics Acquired . | . . . . . Parts Damaged . | . . . . . Bothacking | -11 -10 -10 -9 -8 ------------ Run | Yrd Mat Min Mat Mat Used RIF Installer . | . . . . . Robots Hacked . | . . . . . Non-combat . | . . . . . Combat . | . . . . . Robot Hacks Applied . | . . . . . Relay Couplers Released . | . . . . . Fabnet Peak Effective % . | . . . . . Robots Rewired . | . . . . . Allies Hacked . | . . . . . Hacks Repelled . | . . . . . Allies | -11 -10 -10 -9 -8 -------- Run | Yrd Mat Min Mat Mat Total Allies . | . . . . . Largest Group . | . . . . . Highest-Rated Group . | . . . . . Highest-Rated Ally . | . . . . . Total Orders . | . . . . . Ally Attacks . | . . . . . Total Damage . | . . . . . Kills . | . . . . . Allies Corrupted . | . . . . . Allies Melted . | . . . . . Intel | -11 -10 -10 -9 -8 ------- Run | Yrd Mat Min Mat Mat Active Infowar (turns) 574 | . . . 36 538 Seismic 574 | . . . 36 538 Robot Analysis Total . | . . . . . Derelict Logs Recovered 1 | . . 1 . . Drone Launches . | . . . . . Drone Recoveries . | . . . . . Exploration | -11 -10 -10 -9 -8 ------------- Run | Yrd Mat Min Mat Mat Turns Passed 1703 | 127 338 35 499 704 Spaces Moved 980 | 100 240 30 320 290 Core 9 | 9 . . . . Treads . | . . . . . Legs 971 | 91 240 30 320 290 Wheels . | . . . . . Hover . | . . . . . Flight . | . . . . . Fastest Speed 50 | 50 120 120 120 120 Average Speed 129 | 113 120 120 120 154 Slowest Speed 190 | 120 120 120 190 190 Overloaded Moves . | . . . . . Propulsion Burnouts . | . . . . . Robots Hopped . | . . . . . Potential Cave-ins . | . . . . . Cave-ins Triggered . | . . . . . Exploration Rate (%) 15 | 5 23 9 26 15 Regions Visited 4 Branch Regions 1 Pre-discovered Areas . | . . . . . Known Exits Taken . | . . . . . Unknown Exits Taken 4 | 1 1 1 1 . Scrap Searched . | . . . . . Spaces Dug . | . . . . . Terrain Destroyed 116 | . 4 . . 112 Melee . | . . . . . Projectile . | . . . . . AOE 116 | . 4 . . 112 Terrain Rammed . | . . . . . Walls Destroyed . | . . . . . Machines Disabled . | . . . . . Actions | -11 -10 -10 -9 -8 --------- Run | Yrd Mat Min Mat Mat Total 1239 | 111 266 29 377 456 Wait 120 | . 11 . 13 96 Move 976 | 99 239 29 319 290 Hop . | . . . . . Pick Up 16 | 6 1 . 6 3 Fast Attach 12 | 4 . . 4 4 Attach 8 | 2 1 . 1 4 Detach 2 | . . . . 2 Swap 6 | . 1 . 3 2 Drop 4 | . . . 2 2 Fire 89 | . 13 . 28 48 Melee . | . . . . . Ram . | . . . . . Kick 6 | . . . 1 5 Crush . | . . . . . Escape Stasis . | . . . . . Rewire . | . . . . . Trap . | . . . . . Miscellaneous . | . . . . . Route ------- -11/Scrapyard -10/Materials -10/Mines -9/Materials -8/Materials History --------- Turn | Location | Event 4 | -11/Scrapyard | Discovered new exit (range 15) 128 | -11/Scrapyard | Entered Materials 310 | -10/Materials | Build established: Mutant 443 | -10/Materials | Discovered new exit (range 16) 466 | -10/Materials | Entered Mines 483 | -10/Mines | Discovered new exit (range 11) 501 | -10/Mines | Entered Materials 501 | -9/Materials | Evolved 2 slots: Propulsion x2 922 | -9/Materials | Discovered new exit (range 12) 1000 | -9/Materials | Entered another Materials area 1000 | -8/Materials | Evolved 2 slots: Utility x1, Weapon x1 1600 | -8/Materials | Lost 4 parts (1p2n1u) 1704 | -8/Materials | Self-destructed Last Messages --------------- U-05 Engineer lays Concrete. U-05 Engineer builds a Wall. U-05 Engineer lays Concrete. U-05 Engineer builds a Wall. K-01 Serf collects debris. U-05 Engineer builds a Wall. U-05 Engineer lays Concrete. Kicked U-05 Engineer. K-01 Serf collects debris. The unstable cave ceiling collapses. Kicked U-05 Engineer. U-05 Engineer builds a Wall. Kicked U-05 Engineer. K-01 Serf collects debris. Kicked U-05 Engineer. K-01 Serf collects debris. Kicked U-05 Engineer. K-01 Serf collects debris. U-05 Engineer destroyed. [Achievement: Oops] Map ----- +----------------------------------------------------+ | ?????????????????????????????????????????????????? | | ?????????????????????????????????????????????????? | | ?????????????????????????????????????????????????? | | ?????????????????????????????????????????????????? | | ?????????????????????????????????????????????????? | | ?????????????????????????????????????????????????? | | ?????????????????????????????????????????????????? | | ?????????????????????????????????????????????????? | | ?????????????????????????????????????????????????? | | ?????????????????????????????????????????????????? | | ?????????????????????????????????????????????????? | | ?????????????????????????????????????????????????? | | ?????????????????????????????????????????????????? | | ????????????##########???????????????????????????? | | ????????????# #???????????????????????????? | | ????????????# """ #???????????????????????????? | | ????????????# """ #???????????????????????????? | | ????????????# """ =#??????????+????????????????? | | ????????????# #????????? #????????????????? | | ????????????# " "" ########? #????????????????? | | ????????????# "R"" ## # ## #????????????????? | | ####??????### """ ## # ?####???????????? | | """#??????# | ?????????? | | "Y"########### # # # T !%= ????????? | | #####g g ????????? | | ! @ g| #????????????? | | ^ # # ##### #?????????????? | | "" k # ## ?#?????????????? | | " """"" " """ ??????????????? | | " """""^ # # """ """???????????????? | | " """"" ######## """ ""????????????????? | | """ #??????? """ ""????????????????? | | #??????? """ ""????????????????? | | ! #??????? ??????????????????? | | ####### ######????????! =???????????????????? | | ??????# #?????????????###???????????????????? | | ??????#! !#???????????????????????????????????? | | ??????## !! ##???????????????????????????????????? | | ???????######????????????????????????????????????? | | ?????????????????????????????????????????????????? | | ?????????????????????????????????????????????????? | | ?????????????????????????????????????????????????? | | ?????????????????????????????????????????????????? | | ?????????????????????????????????????????????????? | | ?????????????????????????????????????????????????? | | ?????????????????????????????????????????????????? | | ?????????????????????????????????????????????????? | | ?????????????????????????????????????????????????? | | ?????????????????????????????????????????????????? | | ?????????????????????????????????????????????????? | +----------------------------------------------------+ Best States ------------- Heat Dissipation 31 Energy Generation 12 Energy Capacity 265 Matter Stores 300 Matter Capacity 300 Sight Range 16 Terrain Scan Density 10 Evasion (%) 55 Item Schematics ----------------- None Robot Schematics ------------------ None Fabricated ------------ Nothing Repaired ---------- Nothing Studied --------- None Alien Tech Used ----------------- None Achievements -------------- Construction Begets Destruction Oops Challenges ------------ None Game ------ Seed ChromionSegregatorSource Manual? 0 Play Time 00:25:11 Cumulative 2.5 hours Start 2026.01.30 @ 06:49:08 End 2026.02.03 @ 08:27:35 Sessions 3 Manual Loads 0 Difficulty Rogue Special Mode None Game No. 9 Rogue 6 Adventurer 0 Explorer 3 Win Type - Total 0 Types 0/0/0/0/0/0/0/0/0/0 Lore% 1 Gallery% 6 Achievement% 7 Wizard Run 0 Options --------- Layout 0 ASCII 0 Keyboard 0 Movement Arrows Keybinds 0 Fullscreen 1 Font 24/Smallcaps Map View 76x50 Zoom Use 13% Tactical HUD 0 Map Filters NONE Filters NONE Steam 1 RUN: de68bc54-71e9-4805-9915-c13719c6e318